Cogmind - Beta 17 @@@ ROGUE MODE // 2026.08.07 @ 12:16:05 Player: LandRaider Result: Self-destructed Performance ------------- Evolutions (2) 1000 Regions Visited (3) 600 Robots Destroyed (21) 105 Value Destroyed (612) 612 Prototype IDs (2) 40 Alien Tech Used (0) 0 Bonus (0) 0 TOTAL SCORE: 2357 Bonus ------- None Cogmind --------- Core Integrity 273/550 Matter 69/300 Energy 245/265 System Corruption 0% Temperature Critical (592) Movement Core (300) Ox5 Location -8/Materials Parts ------- > --- POWER (1) -------- Improved Ion Engine > --- PROPULSION (3) --- Aluminum Leg > --- UTILITY (5) ------ Visual Processing Unit Terrain Scanner Terrain Scan Processor Hardened Light Armor Plating Hacking Suite > --- WEAPON (2) ------- Particle Gun > --- INVENTORY (5) ---- Ion Engine Reaction Control System Hardened Light Armor Plating Peak State ------------ > --- POWER ------------ Improved Ion Engine > --- PROPULSION ------- Aluminum Leg Wheel Armored Wheel > --- UTILITY ---------- Visual Processing Unit Terrain Scanner Terrain Scan Processor Hardened Light Armor Plating Hacking Suite > --- WEAPON ----------- Shock Rifle Particle Gun > --- INVENTORY -------- Ion Engine Reaction Control System Hardened Light Armor Plating [Rating: 21] Favorites ----------- Power Light Ion Engine Engine Light Ion Engine Power Core Light Nuclear Core Propulsion Armored Wheel Leg Aluminum Leg Wheel Armored Wheel Utility Small Storage Unit Device Terrain Scanner Storage Small Storage Unit Processor Terrain Scan Processor Hackware Hacking Suite Protection Hardened Light Armor Plating Weapon Mining Claw Energy Gun EM Pulse Gun Ballistic Gun Autogun Ballistic Cannon Improved Light Cannon Launcher Grenade Launcher Slashing Weapon Mining Claw Build | -11 -10 -9 -8 ------- Run | Yrd Mat Mat Mat Slots Evolved 4 | . . 2 2 Power . | . . . . Propulsion 1 | . . . 1 Utility 3 | . . 2 1 Weapon . | . . . . Parts Attached 33 | 6 1 15 11 Power 6 | 1 . 2 3 Engine 5 | 1 . 2 2 Core 1 | . . . 1 Reactor . | . . . . Propulsion 8 | 2 . 5 1 Treads . | . . . . Leg 1 | . . . 1 Wheel 7 | 2 . 5 . Hover . | . . . . Flight . | . . . . Utility 9 | 1 . 4 4 Device 4 | . . 2 2 Storage 1 | 1 . . . Processor 2 | . . 2 . Hackware 1 | . . . 1 Protection 1 | . . . 1 Artifact . | . . . . Weapon 10 | 2 1 4 3 Energy Gun 4 | 1 . 1 2 Energy Cannon . | . . . . Ballistic Gun 3 | 1 . 2 . Ballistic Cannon 1 | . . 1 . Launcher 1 | . . . 1 Special Weapon . | . . . . Impact Weapon . | . . . . Slashing Weapon 1 | . 1 . . Piercing Weapon . | . . . . Special Melee Weapon . | . . . . Unidentified Prototypes . | . . . . Parts Lost 16 | . . 7 9 Power 3 | . . 2 1 Propulsion 5 | . . 2 3 Utility 2 | . . 1 1 Weapon 6 | . . 2 4 Highest Loss Streak 6 | . . 4 6 To Critical Strikes . | . . . . Average Backups 5 | 1 5 7 3 Power . | . 1 . . Propulsion 2 | . 2 2 1 Utility . | . . . . Weapon 2 | . 2 3 1 Tool/Special . | . . . . Unused Backups 4 | . . 3 1 Power . | . . . . Propulsion 2 | . . 2 . Utility 1 | . . . 1 Weapon 1 | . . 1 . Tool/Special . | . . . . Average Slot Usage (%) 81 | . 85 78 83 Engine 8 | . 14 9 4 Wheel 20 | . 28 18 20 Device 4 | . . 4 5 Storage 9 | . 14 11 6 Processor 12 | . . 13 18 Hackware 3 | . . . 8 Energy Gun 5 | . 14 5 2 Ballistic Gun 6 | . 12 8 . Ballistic Cannon 1 | . . . 3 Slashing Weapon 5 | . 1 6 5 Peak Build Rating 21 | 6 6 19 21 Average Rating 12 | 4 6 11 17 On Entrance 6 | . 6 6 12 Avg Prop Armor Cover (%) 7 | . . . 7 Naked Turns . | . . . . Heaviest Build 20 | 11 12 20 19 Greatest Support 36 | 20 20 24 36 Greatest Overweight (x) 5 | . . 5 . Average Overweight (x) . | . . . . Largest Inventory Capacity 8 | 8 8 8 8 Average Capacity 7 | 7 8 8 7 Most Carried 8 | 4 6 8 6 Average Carried 5 | 2 5 7 3 Final Capacity 8 | 8 8 8 5 Final Carried 7 | 4 6 7 3 Class Distribution -------------------- 76% | Mutant 15% | Scavenger-Mutant 8% | Skirmisher Dominant Class ---------------- Mutant | -10/Materials Mutant | -9/Materials Mutant | -8/Materials Resources | -11 -10 -9 -8 ----------- Run | Yrd Mat Mat Mat Matter Collected 553 | 183 82 268 20 Remotely . | . . . . Salvage Created 593 | . 86 406 101 Parts 44 | . 4 29 11 Haulers Intercepted 1 | . 1 . . Recyclers Shooed . | . . . . Parts Field Recycled . | . . . . Retrieved Matter . | . . . . Parts Self-Destructed . | . . . . Prevented . | . . . . Parts Restored . | . . . . Kills | -11 -10 -9 -8 ------- Run | Yrd Mat Mat Mat Combat Hostiles Destroyed 16 | . 1 7 8 Guns 8 | . . 7 1 AOE 8 | . 1 . 7 Classes Destroyed 7 | . 2 4 1 Worker 2 | . . 2 . Hauler 1 | . 1 . . Operator 1 | . . 1 . Watcher 1 | . . 1 . Swarmer 4 | . . . 4 Grunt 9 | . 1 4 4 Sentry 3 | . . 3 . Best Kill Streak 6 | . 1 6 4 Combat Bots Only 5 | . 1 5 4 Max Kills in Single Turn 3 | . 1 1 3 Gunslinging . | . . . . Exploded 3 | . 1 . 3 Melee . | . . . . Uniques/NPCs Destroyed . | . . . . Combat | -11 -10 -9 -8 -------- Run | Yrd Mat Mat Mat Hostile Shots Fired 159 | . 3 71 85 Missed 44 | . 1 23 20 Hits 115 | . 2 48 65 Projectile 115 | . 2 48 65 Critical Strikes 6 | . . 1 5 Damage Taken 2081 | . 23 976 1082 Core 491 | . . 214 277 Absorbed by Shields . | . . . . Core Remaining (%) 82 | 100 100 46 . Volleys Fired 53 | . 5 25 23 Largest 2 | . 2 2 2 Hottest 115 | . 60 89 115 Shots Fired 89 | . 10 49 30 Gun 80 | . 10 48 22 Cannon 1 | . . 1 . Launcher 8 | . . . 8 Special . | . . . . Kinetic 58 | . 5 47 6 Thermal 10 | . . 1 9 Explosive 8 | . . . 8 Electromagnetic 13 | . 5 1 7 Robot Hit Streak 21 | . 3 21 9 Robot Miss Streak 2 | . 2 1 2 Penetration Max . | . . . . Secondary Targets . | . . . . Shots Hit Robots 68 | . 5 43 20 Core Hits 41 | . 3 18 20 Critical Kills . | . . . . Critical Parts Destroyed . | . . . . Critical Strikes . | . . . . Melee Attacks 38 | . 4 23 11 Impact . | . . . . Slashing 38 | . 4 23 11 Piercing . | . . . . Sneak Attacks 1 | . . 1 . Combat Hostiles . | . . . . Follow-up Attacks . | . . . . Damage Inflicted 1825 | . 85 732 1008 Guns 880 | . 46 566 268 Cannons . | . . . . Explosions 800 | . 39 21 740 Melee 145 | . . 145 . Ramming . | . . . . Kinetic 638 | . 19 539 80 Thermal 443 | . 39 36 368 Explosive 482 | . . . 482 Electromagnetic 117 | . 27 12 78 Impact . | . . . . Slashing 145 | . . 145 . Piercing . | . . . . Highest Corruption 10 | . . 10 . Average Corruption 10 | . . 10 . Corruption Purged . | . . . . Corruption Blocked . | . . . . Effects 1 | . . 1 . Message Errors 1 | . . 1 . Overload Shots . | . . . . Overflow Damage 57 | . . 36 21 Projectiles . | . . . . Explosions 33 | . . 12 21 Melee 24 | . . 24 . Knockbacks . | . . . . Impact . | . . . . Kinetic . | . . . . Secondary . | . . . . Self-Inflicted Damage 241 | . . 37 204 Shots 6 | . . 1 5 Rammed . | . . . . Targets Rammed . | . . . . Kicked . | . . . . Crushed . | . . . . Highest Temperature 583 | . 32 18 583 Average Temperature 147 | . 17 8 249 Received Heat Transfer 630 | . 12 249 369 Effects 8 | . . . 8 Shutdowns 1 | . . . 1 Interference 1 | . . . 1 Damage (minor) 1 | . . . 1 Damage (major) 5 | . . . 5 Siege Activations . | . . . . Martial Activations . | . . . . Shielding Activations . | . . . . Robots Disrupted . | . . . . Combat Hostiles . | . . . . Robots Corrupted . | . . . . Combat Hostiles . | . . . . Parts Fried . | . . . . Impact Corruptions . | . . . . Robots Melted . | . . . . Combat Hostiles . | . . . . Parts Melted . | . . . . Heat Transferred 596 | . 50 87 459 Parts Sabotaged . | . . . . Parts Stolen . | . . . . Parts Stripped . | . . . . Power Chain Reactions 2 | . 1 1 . Alert | -11 -10 -9 -8 ------- Run | Yrd Mat Mat Mat Maximum Alert Level 1 | . . . 1 Low Security (%) 98 | 100 100 100 95 Level 1 1 | . . . 4 Level 2 . | . . . . Level 3 . | . . . . Level 4 . | . . . . Level 5 . | . . . . High Security . | . . . . Max Security . | . . . . Peak Influence 229 | . 47 184 229 Initial 44 | . . 7 44 Average 77 | . 22 89 95 Influence Increases 689 | . 77 302 310 Destroy 0b10 Robot/C 320 | . 20 140 160 Destroy 0b10 Robot/NC 25 | . 5 20 . Destroy Leader 84 | . 12 42 30 Successful Hack 14 | . 4 10 . Select Force Hacks 30 | . 30 . . Disable Machine 45 | . . 15 30 Destroy Structure 96 | . 6 15 75 Lose Combat Pursuer 75 | . . 60 15 Influence Decreases 555 | . 60 213 282 Entered New Map 72 | . . 10 62 Time Decay 338 | . 60 148 130 Lost Part 145 | . . 55 90 Squads Dispatched 8 | . 2 2 4 Investigation 6 | . 1 2 3 Extermination . | . . . . Reinforcement 2 | . 1 . 1 Assault . | . . . . Garrison . | . . . . Intercept . | . . . . Searches Triggered . | . . . . Construction Impeded 1 | . . . 1 Haulers Reinforced . | . . . . Active Scanning Responses . | . . . . Cargo Convoy Interrupts . | . . . . Stealth | -11 -10 -9 -8 --------- Run | Yrd Mat Mat Mat Distress Signals 2 | . . 2 . Communications Jammed . | . . . . Distress Signals . | . . . . Times Spotted 36 | . 2 16 18 Peak Tracking Total 8 | . 1 5 8 Tactical Retreats 3 | . . 2 1 Traps | -11 -10 -9 -8 ------- Run | Yrd Mat Mat Mat Traps Triggered 1 | . . . 1 Indirectly . | . . . . Trap Hack Attempts . | . . . . Triggered . | . . . . Disarmed . | . . . . Reprogrammed . | . . . . Reused . | . . . . Traps Extracted . | . . . . Installed . | . . . . Triggered . | . . . . Machines | -11 -10 -9 -8 ---------- Run | Yrd Mat Mat Mat Machines Disabled 3 | . . 1 2 Max in Single Turn 1 | . . 1 1 Machines Repaired . | . . . . Machines Dismantled . | . . . . Machines Sabotaged . | . . . . Overloaded Fab Kills . | . . . . Hacking | -11 -10 -9 -8 --------- Run | Yrd Mat Mat Mat Machines Accessed 9 | . 3 3 3 Terminals 7 | . 2 3 2 Fabricators . | . . . . Repair Stations . | . . . . Recycling Units 1 | . 1 . . Scanalyzers 1 | . . . 1 Garrison Access . | . . . . Total Hacks 39 | . 8 15 16 Successful 22 | . 7 5 10 Failed 16 | . 1 10 5 Catastrophic 1 | . . . 1 Database Lockouts 1 | . . . 1 Manual 16 | . 4 9 3 Terminals 33 | . 6 15 12 Fabricators . | . . . . Repair Stations . | . . . . Recycling Units 2 | . 2 . . Scanalyzers 4 | . . . 4 Garrison Access . | . . . . Terminal Hacks 13 | . 3 5 5 Record 5 | . 2 1 2 Prototype ID Bank 1 | . . 1 . Branch Access Points 1 | . . . 1 Emergency Access Points 2 | . . 2 . Alert Level 2 | . 1 . 1 Zone Layout 2 | . . 1 1 Fabricator Hacks . | . . . . Repair Station Hacks . | . . . . Recycling Unit Hacks 1 | . 1 . . Report Inventory 1 | . 1 . . Scanalyzer 3 | . . . 3 Retrieve Study 3 | . . . 3 Garrison Access Hacks . | . . . . Unauthorized Hacks 5 | . 3 . 2 Terminals 4 | . 2 . 2 Track 1 | . . . 1 Botnet 3 | . 2 . 1 Fabricators . | . . . . Repair Stations . | . . . . Recycling Units 1 | . 1 . . Tunnel 1 | . 1 . . Scanalyzers . | . . . . Garrison Access . | . . . . Data Cores Recovered 1 | . . 1 . Used . | . . . . Hacking Detections 8 | . 2 3 3 Full Trace Events 6 | . 1 2 3 Feedback Events . | . . . . Feedback Blocked . | . . . . Robot Schematics Acquired . | . . . . Robots Built . | . . . . Authchips . | . . . . Time . | . . . . Total Robot Build Rating . | . . . . Part Schematics Acquired . | . . . . Parts Built . | . . . . Authchips . | . . . . Time . | . . . . Total Part Build Rating . | . . . . Part Studies Acquired 3 | . . . 3 Parts Repaired . | . . . . Time . | . . . . Parts Recycled . | . . . . Recycled Matter . | . . . . Retrieved Matter . | . . . . Retrieved Components . | . . . . Parts Scanalyzed . | . . . . Part Schematics Acquired . | . . . . Parts Damaged . | . . . . Bothacking | -11 -10 -9 -8 ------------ Run | Yrd Mat Mat Mat Used RIF Installer . | . . . . Robots Hacked . | . . . . Non-combat . | . . . . Combat . | . . . . Robot Hacks Applied . | . . . . Relay Couplers Released . | . . . . Fabnet Peak Effective % . | . . . . Robots Rewired . | . . . . Allies Hacked . | . . . . Hacks Repelled . | . . . . Allies | -11 -10 -9 -8 -------- Run | Yrd Mat Mat Mat Total Allies . | . . . . Largest Group . | . . . . Highest-Rated Group . | . . . . Highest-Rated Ally . | . . . . Total Orders . | . . . . Ally Attacks . | . . . . Total Damage . | . . . . Kills . | . . . . Allies Corrupted . | . . . . Allies Melted . | . . . . Intel | -11 -10 -9 -8 ------- Run | Yrd Mat Mat Mat Active Infowar (turns) 427 | . . 134 293 Optics 427 | . . 134 293 Terrain 156 | . . . 156 Robot Analysis Total . | . . . . Derelict Logs Recovered . | . . . . Drone Launches . | . . . . Drone Recoveries . | . . . . Exploration | -11 -10 -9 -8 ------------- Run | Yrd Mat Mat Mat Turns Passed 881 | 37 140 411 293 Spaces Moved 656 | 32 138 273 213 Core 7 | 3 . 4 . Treads . | . . . . Legs . | . . . . Wheels 649 | 29 138 269 213 Hover . | . . . . Flight . | . . . . Fastest Speed 50 | 50 80 80 75 Average Speed 84 | 77 80 86 85 Slowest Speed 300 | 80 80 300 90 Overloaded Moves . | . . . . Propulsion Burnouts . | . . . . Robots Hopped . | . . . . Potential Cave-ins 2 | . . 2 . Cave-ins Triggered 1 | . . 1 . Exploration Rate (%) 25 | 3 32 37 31 Regions Visited 3 Branch Regions . Pre-discovered Areas 1 | . 1 . . Known Exits Taken . | . . . . Unknown Exits Taken 3 | 1 1 1 . Scrap Searched . | . . . . Spaces Dug 23 | . 3 10 10 Terrain Destroyed 110 | . 6 15 89 Melee 23 | . 3 10 10 Projectile . | . . . . AOE 87 | . 3 5 79 Terrain Rammed . | . . . . Walls Destroyed . | . . . . Machines Disabled . | . . . . Actions | -11 -10 -9 -8 --------- Run | Yrd Mat Mat Mat Total 816 | 41 149 356 270 Wait 7 | . . 3 4 Move 653 | 31 137 272 213 Hop . | . . . . Pick Up 17 | 4 2 8 3 Fast Attach 16 | 6 . 6 4 Attach 11 | . . 2 9 Detach . | . . . . Swap 12 | . 1 8 3 Drop 9 | . . 9 . Fire 53 | . 5 25 23 Melee 38 | . 4 23 11 Ram . | . . . . Kick . | . . . . Crush . | . . . . Escape Stasis . | . . . . Rewire . | . . . . Trap . | . . . . Miscellaneous . | . . . . Route ------- -11/Scrapyard -10/Materials -9/Materials -8/Materials (discovered 2 exits: Sto x2) History --------- Turn | Location | Event 17 | -11/Scrapyard | Discovered new exit (range 15) 38 | -11/Scrapyard | Entered Materials 162 | -10/Materials | Discovered new exit (range 4) 178 | -10/Materials | Entered another Materials area 178 | -9/Materials | Evolved 2 slots: Utility x2 336 | -9/Materials | Build established: Mutant 367 | -9/Materials | Lost 4 parts (1p2n1w) 549 | -9/Materials | Crushed by falling debris 549 | -9/Materials | System corruption reached 10% 551 | -9/Materials | Core integrity fell below 50% 576 | -9/Materials | Discovered new exit (range 10) 580 | -9/Materials | Lost 3 parts (1p1u1w) 589 | -9/Materials | Entered another Materials area 589 | -8/Materials | Evolved 2 slots: Propulsion x1, Utility x1 722 | -8/Materials | Identified exit to Storage 747 | -8/Materials | Central database locked down 828 | -8/Materials | Lost 6 parts (1p1n1u3w) 882 | -8/Materials | Self-destructed Last Messages --------------- 00866_ Critical hit (Burn: +37). 00870_ Slug penetrates Wall. 00871_ Critical hit (Burn: +37). 00873_ Slug penetrates Wall. 00873_ Wheel+ destroyed. 00875_ Y-45 Defender IFF system glitched. 00876_ Y-45 Defender heat short circuits Beam Rifle. 00876_ Arm. Wheel+ destroyed. 00877_ Power failure, Imp. Ion Engine shutdown. 00878_ Overheating: Hacking Suite damaged (-7). 00878_ Overheating: Visual Processing Unit damaged (-9). 00878_ Shock Rifle destroyed. 00879_ Overheating: Terrain Scanner damaged (-11). 00879_ Overheating: Aluminum Leg damaged (-19). 00879_ Overheating: Hacking Suite damaged (-1). 00879_ Slug penetrates Wall. 00880_ Critical hit (Burn: +37). 00881_ Overheating: Terrain Scan Processor damaged (-16). 00882_ Overheating: System interference. 00882_ Particle Gun temporarily disabled. Map ----- +----------------------------------------------------+ | ?# #?#??####? ##????????? | | # ##### ## #?##???#??? | | # # """""""" ######????? | | ## # " * = " [ #????? | | ## # " " #????? | | ?# # " = """ #????? | | ?# # [ # """ #????? | | ?# # % """ #????? | | ## #!% % *#??#?? | | # # " # ! #????? | | #""# # """ # ???# | | # u= %[ """ #????? | | ##+## ###### # """ # ?? | | # #= # | # # ??? | | # # ## # + ???# | | "" # # ## " + = ! #? # | | T" # # ## "" # #? ? | | "" # #### S" # #??? # | | # ##?# # ! # ? ?# | | ##### ##?### #### ###### | | ?#?## ########?## "Y" # # | | ???## #????###### """ #g" !# | | ##### ########### # T # | | / # g "g[# | | #####+#### ! # ### #gg # | | ## [ # +% ### #@ # | | ?# """ # # #?# # !! # | | ?# """ # "T" # ### # !! # | | ?# """ # # #?# # Y! # | | ## ####+### #?# ## ### | | ?########### #?# #?##?? | | ## # #?# #??##? | | ??? ? ?????# #?# #??#?# | | ???????? ?# ###+####/##???? | | ??? ???"" # # ##??? | | ?? ?????? / + ##?## | | ???????""" # # ![[ #?### | | ??????? # # ![ #?##? | | ??? ?? ?# # ###?# | | ??????####?# # #???? | | ??????????? # ##??? | | ????? ???? # #???? | | ?????? ??? ###########???? | | ??????????######?????????????? | | ???????????#?#???????????????? | | ??????????????????#??????????? | | ?????????????????????????????? | | ?????????????????????????????? | | ????????????????????????#????? | | ?????????????????????????????? | +----------------------------------------------------+ Best States ------------- Heat Dissipation 42 Energy Generation 14 Energy Capacity 265 Matter Stores 300 Matter Capacity 300 Sight Range 18 Terrain Scan Range 14 Terrain Scan Density 85 Armor Coverage 150 Evasion (%) 45 Offensive Hacking 10 Item Schematics ----------------- None Robot Schematics ------------------ None Fabricated ------------ Nothing Repaired ---------- Nothing Studied --------- Arm. Wheel | -8/Materials | Hacked Wheel | -8/Materials | Hacked Ion Engine | -8/Materials | Hacked Alien Tech Used ----------------- None Achievements -------------- None Challenges ------------ None Game ------ Seed VortexOpticalBlade Manual? 0 Play Time 00:18:15 Cumulative 40.6 hours Start 2026.08.07 @ 11:56:28 End 2026.08.07 @ 12:16:05 Sessions 1 Manual Loads 0 Difficulty Rogue Special Mode None Game No. 38 Rogue 36 Adventurer 2 Explorer 0 Win Type - Total 0 Types 0/0/0/0/0/0/0/0/0/0 Lore% 26 Gallery% 25 Achievement% 22 Wizard Run 0 Options --------- Layout 0 ASCII 0 Keyboard 0 Movement Mouse Keybinds 0 Fullscreen 2 Font 24/Smallcaps Map View 76x50 Zoom Use 0% Tactical HUD 1 Map Filters NONE Filters NONE Steam 1 RUN: da9437f9-6c88-4654-b824-799a35642f70